bitfinex/quotes_BTCUSD_20250213
["timestamp","ask_amount","ask_price","bid_price","bid_amount"]
[1739415816386,0.01666502,97514.0,97513.0,2.19122248]
[1739415816863,0.00766502,97514.0,97513.0,2.19022248]
[1739415817050,0.01066502,97514.0,97513.0,2.19022248]
[1739415817519,0.00066502,97514.0,97513.0,2.18922248]
[1739415817653,0.00166502,97514.0,97513.0,2.18922248]
[1739415817856,0.00866502,97514.0,97513.0,2.18922248]
[1739415818084,0.00166502,97514.0,97513.0,2.18922248]
[1739415818665,0.00866502,97514.0,97513.0,2.22269378]
[1739415818870,0.00866502,97514.0,97513.0,2.54969378]
[1739415819160,0.00766502,97514.0,97513.0,2.55969378]
[1739415819396,0.00866502,97514.0,97513.0,2.55969378]
[1739415819947,0.00766502,97514.0,97513.0,2.55969378]
[1739415820104,0.00966502,97514.0,97513.0,2.55969378]
[1739415820305,0.29803691,97540.0,97539.0,0.4]
[1739415820552,0.20531199,97540.0,97539.0,3.4524749]
[1739415820706,0.21601208,97540.0,97539.0,4.1960809]
[1739415820916,0.20531199,97540.0,97539.0,4.3460809]
[1739415821316,0.20531199,97540.0,97539.0,3.6024749]
[1739415821526,0.21231199,97540.0,97539.0,4.3470809]
[1739415821728,0.21231199,97540.0,97539.0,4.3460809]
[1739415822134,0.21931199,97540.0,97539.0,4.3470809]
[1739415822797,0.01426799,97540.0,97539.0,4.3470809]
[1739415822953,0.01926799,97540.0,97539.0,4.3470809]
[1739415823375,0.01426799,97540.0,97539.0,4.3470809]
[1739415823567,0.01426799,97540.0,97539.0,4.8587809]
[1739415824048,0.01926799,97540.0,97539.0,4.8587809]
[1739415824251,0.00526799,97540.0,97539.0,4.8577809]
[1739415824386,0.00026799,97540.0,97539.0,4.8577809]
[1739415824599,0.00626799,97540.0,97539.0,4.8587809]
[1739415824806,0.00626799,97540.0,97539.0,4.8577809]
[1739415825005,0.01126799,97540.0,97539.0,4.8587809]
[1739415825434,0.01117673,97540.0,97539.0,4.8587809]
[1739415825660,0.00063131,97540.0,97539.0,4.8817809]
[1739415825810,0.00022387,97545.0,97544.0,0.1]
[1739415826021,0.00022387,97545.0,97544.0,1.33265861]
[1739415826375,0.00022387,97545.0,97544.0,2.10712566]
[1739415826579,0.00022387,97545.0,97544.0,2.07523965]
[1739415827473,0.00022387,97545.0,97544.0,2.07723965]
[1739415828710,0.15399887,97545.0,97544.0,2.07723965]
[1739415829545,0.15399887,97545.0,97544.0,2.22855965]
[1739415829762,0.15499887,97545.0,97544.0,2.45765965]
[1739415830335,0.15499887,97545.0,97544.0,2.18165565]
[1739415830336,0.15399887,97545.0,97544.0,2.18165565]
[1739415830549,0.15499887,97545.0,97544.0,2.03765565]
[1739415830778,0.15499887,97545.0,97544.0,2.18765565]
[1739415831274,0.15399887,97545.0,97544.0,2.18165565]
[1739415832017,0.15399887,97545.0,97544.0,2.18265565]
[1739415832184,0.15499887,97545.0,97544.0,2.18865565]
[1739415832395,0.15499887,97545.0,97544.0,2.18765565]
[1739415832773,0.15499887,97545.0,97544.0,1.71405365]
[1739415832973,0.15499887,97545.0,97544.0,2.45765965]
[1739415833388,0.15399887,97545.0,97544.0,2.45165965]
[1739415833772,0.15699887,97545.0,97544.0,2.45265965]
[1739415843846,0.15699887,97545.0,97544.0,1.70905365]
[1739415844015,0.15699887,97545.0,97544.0,2.45265965]
[1739415844936,0.15499887,97545.0,97544.0,2.45265965]
[1739415845335,0.15399887,97545.0,97544.0,2.45265965]
[1739415845765,0.15499887,97545.0,97544.0,2.45365965]
[1739415847122,0.00122387,97545.0,97544.0,2.53495965]
[1739415847325,0.00122387,97545.0,97544.0,2.56684665]
[1739415847777,0.00122387,97545.0,97544.0,2.61314665]
[1739415847936,0.00122387,97545.0,97544.0,2.79992265]
[1739415848529,0.00122387,97545.0,97544.0,2.79892265]
[1739415848665,0.00022387,97545.0,97544.0,2.80839703]
[1739415848933,0.00122387,97545.0,97544.0,2.65662103]
[1739415849193,0.00122387,97545.0,97544.0,2.97314665]
[1739415849758,0.00022387,97545.0,97544.0,2.97214665]
[1739415849957,0.00122387,97545.0,97544.0,2.97214665]
[1739415850212,0.00122387,97545.0,97544.0,2.97114665]
[1739415850462,0.00222387,97545.0,97544.0,2.98514665]
[1739415853608,0.15599887,97545.0,97544.0,2.82454665]
[1739415859207,0.00222387,97545.0,97544.0,2.82454665]
[1739415859365,0.15599887,97545.0,97544.0,2.82454665]
[1739415859994,0.00222387,97545.0,97544.0,2.82454665]
[1739415860398,0.00222387,97545.0,97544.0,2.85754665]
[1739415860736,0.00222387,97545.0,97544.0,2.93974665]
[1739415861161,0.00222387,97545.0,97544.0,2.94704665]
[1739415861762,0.00222387,97545.0,97544.0,2.93974665]
[1739415866683,0.00222387,97545.0,97544.0,2.94704665]
[1739415873159,0.15599887,97545.0,97544.0,2.86484665]
[1739415873358,0.15599887,97545.0,97544.0,2.83184665]
[1739415879952,0.00222387,97545.0,97544.0,2.83184665]
[1739415880124,0.15599887,97545.0,97544.0,2.83184665]
[1739415881801,0.15599887,97545.0,97544.0,2.38796165]
[1739415882014,0.15599887,97545.0,97544.0,2.36421965]
[1739415882188,0.15599887,97545.0,97544.0,2.32092165]
[1739415882332,0.15599887,97545.0,97544.0,2.30785665]
[1739415882539,0.15499887,97545.0,97544.0,2.20020365]
[1739415882745,0.23169887,97545.0,97544.0,2.20020365]
[1739415882940,0.24246734,97545.0,97544.0,2.07424065]
[1739415883324,0.25273885,97545.0,97544.0,2.42601865]
[1739415883648,0.24246734,97545.0,97544.0,2.42601865]
[1739415884181,0.24146734,97545.0,97544.0,2.42601865]
[1739415884381,0.24246734,97545.0,97544.0,2.42601865]
[1739415884580,0.24246734,97545.0,97544.0,2.09901865]
[1739415884802,0.24446734,97545.0,97544.0,2.10801865]
[1739415885376,0.24346734,97545.0,97544.0,2.09901865]
[1739415885572,0.24346734,97545.0,97544.0,2.10201865]
[1739415891528,0.24346734,97545.0,97544.0,2.07013165]
[1739415891948,0.24346734,97545.0,97544.0,2.10209628]
[1739415895575,0.24346734,97545.0,97544.0,2.07013165]
[1739415895767,0.16676734,97545.0,97544.0,2.10209003]
[1739415897502,0.16676734,97545.0,97544.0,2.07013165]
[1739415897920,0.16676734,97545.0,97544.0,2.10208964]
[1739415898433,0.16676734,97545.0,97544.0,2.07013165]
[1739415899047,0.16676734,97545.0,97544.0,2.10208877]
[1739415899267,0.16676734,97545.0,97544.0,2.07013165]
[1739415899407,0.16676734,97545.0,97544.0,2.1020885]
[1739415903292,0.16676734,97545.0,97544.0,2.07013165]
[1739415903487,0.16676734,97545.0,97544.0,2.10209246]
[1739415908499,0.16676734,97545.0,97544.0,2.09479246]
[1739415913133,0.16649957,97545.0,97544.0,2.09479246]
[1739415919660,0.01276847,97545.0,97544.0,2.09479246]
[1739415919860,0.16654347,97545.0,97544.0,2.09479246]
[1739415920068,0.002,97545.0,97544.0,2.09479246]
[1739415920450,0.002,97545.0,97544.0,2.25219246]
[1739415921090,0.13674373,97548.0,97547.0,0.01]
[1739415921296,0.205012,97555.0,97554.0,0.4]
[1739415921635,0.21580591,97555.0,97554.0,1.43664446]
[1739415921880,0.21580591,97555.0,97554.0,2.18025046]
[1739415922076,0.205012,97555.0,97554.0,2.18025046]
[1739415922489,0.206012,97555.0,97554.0,2.33457046]
[1739415923562,0.208012,97555.0,97554.0,2.33457046]
[1739415924674,0.208012,97555.0,97554.0,2.84627046]
[1739415925686,0.207012,97555.0,97554.0,2.84527046]
[1739415925896,0.205012,97555.0,97554.0,2.84527046]
[1739415926460,0.205012,97555.0,97554.0,2.84727046]
[1739415928137,0.205012,97555.0,97554.0,2.99727046]
[1739415934719,0.20523566,97555.0,97554.0,2.99727046]
[1739415935141,0.20523566,97555.0,97554.0,4.49727046]
[1739415945194,0.00022366,97555.0,97554.0,4.49727046]
[1739415945392,0.15398266,97555.0,97554.0,3.75366446]
[1739415945627,0.15398266,97555.0,97554.0,4.49727046]
[1739415951184,0.15398266,97555.0,97554.0,5.52111555]
[1739415951858,0.15398266,97555.0,97554.0,4.49727046]
[1739415953008,0.15398266,97555.0,97554.0,4.49527046]
[1739415953379,0.15498266,97555.0,97554.0,4.50327046]
[1739415954632,0.00122366,97555.0,97554.0,4.50327046]
[1739415954874,0.00022366,97555.0,97554.0,4.49527046]
[1739415955066,0.00122366,97555.0,97554.0,4.50527046]
[1739415955458,0.00022366,97555.0,97554.0,4.49527046]
[1739415955671,0.00022366,97555.0,97554.0,4.57717046]
[1739415955834,0.00122366,97555.0,97554.0,4.58517046]
[1739415956299,0.00022366,97555.0,97554.0,4.57717046]
[1739415956500,0.00022366,97555.0,97554.0,4.58717046]
[1739415956667,0.00122366,97555.0,97554.0,4.58717046]
[1739415959060,0.15498266,97555.0,97554.0,4.58717046]
[1739415959463,0.00122366,97555.0,97554.0,4.58717046]
[1739415960327,0.15498266,97555.0,97554.0,4.58717046]
[1739415960909,0.15498266,97555.0,97554.0,4.50527046]
[1739415972915,0.15498266,97555.0,97554.0,4.51257046]
[1739415983048,0.15498266,97555.0,97554.0,4.50527046]
[1739415986452,0.15498266,97555.0,97554.0,4.51257046]
[1739415996514,0.15498266,97555.0,97554.0,4.50527046]
[1739415997600,0.15498266,97555.0,97554.0,3.76166446]
[1739415997799,0.15498266,97555.0,97554.0,4.50527046]
[1739416001633,0.15498266,97555.0,97554.0,4.51257046]
[1739416004968,0.15498266,97555.0,97554.0,3.01257046]
[1739416005579,0.16261731,97555.0,97554.0,3.01257046]
[1739416007727,0.16261731,97555.0,97554.0,3.00527046]
[1739416009373,0.15498266,97555.0,97554.0,3.00527046]
[1739416018650,0.15416261,97555.0,97554.0,3.00527046]
[1739416021172,0.15420781,97555.0,97554.0,4.50527046]
[1739416022123,0.15420781,97555.0,97554.0,3.00527046]
[1739416024033,0.15420781,97555.0,97554.0,4.50527046]
[1739416026500,0.15420781,97555.0,97554.0,2.36258546]
[1739416026700,0.15420781,97555.0,97554.0,2.26166446]
[1739416027298,0.1538042,97555.0,97554.0,2.25166446]
[1739416027531,0.1538042,97555.0,97554.0,2.42315096]
[1739416027683,0.15402786,97555.0,97554.0,2.42515096]
[1739416030575,0.15402786,97555.0,97554.0,3.92515096]
[1739416034396,0.15402786,97555.0,97554.0,3.92315096]
[1739416034595,0.15402786,97555.0,97554.0,3.92515096]
[1739416034805,0.15402786,97555.0,97554.0,3.92615096]
[1739416035006,0.15602786,97555.0,97554.0,3.92615096]
[1739416040138,0.15602786,97555.0,97554.0,3.75477096]
[1739416040266,0.15602786,97555.0,97554.0,4.49837696]
[1739416043648,0.15602786,97555.0,97554.0,2.99837696]
[1739416047704,0.15602786,97555.0,97554.0,4.49837696]
[1739416049095,0.15602786,97555.0,97554.0,4.27908096]
[1739416049422,0.15602786,97555.0,97554.0,4.23636096]
[1739416049841,0.15602786,97555.0,97554.0,4.19948696]
[1739416050995,0.15602786,97555.0,97554.0,3.75477096]
[1739416051169,0.15602786,97555.0,97554.0,4.49837696]
[1739416052407,0.15602786,97555.0,97554.0,2.87252496]
[1739416052620,0.15602786,97555.0,97554.0,2.63800096]
[1739416052847,0.15602786,97555.0,97554.0,2.61420196]
[1739416053630,0.15602786,97555.0,97554.0,2.58123196]
[1739416054236,0.15602786,97555.0,97554.0,2.56735196]
[1739416056409,0.15602786,97555.0,97554.0,4.06735196]
[1739416062757,0.15602786,97555.0,97554.0,3.75477096]
[1739416063192,0.15602786,97555.0,97554.0,4.49837696]
[1739416074062,0.00226886,97555.0,97554.0,4.66207696]
[1739416074797,0.00026886,97555.0,97554.0,4.66107696]
[1739416075043,0.00026886,97555.0,97554.0,4.65907696]
[1739416075189,0.00226886,97555.0,97554.0,4.65907696]
[1739416075394,0.00026886,97555.0,97554.0,4.66407696]
[1739416075881,0.00226886,97555.0,97554.0,6.07207696]
[1739416076083,0.00326886,97555.0,97554.0,6.08407696]
[1739416076692,0.00226886,97555.0,97554.0,6.07207696]
[1739416077113,0.00326886,97555.0,97554.0,6.08707696]
[1739416077504,0.00326886,97555.0,97554.0,6.10888449]
[1739416077870,0.00126886,97555.0,97554.0,6.10888449]
[1739416078276,0.00026886,97555.0,97554.0,6.09688449]
[1739416078700,0.00126886,97555.0,97554.0,6.11188449]
[1739416079932,0.00126886,97555.0,97554.0,5.36827849]
[1739416080108,0.00126886,97555.0,97554.0,6.11188449]
[1739416080308,0.00126886,97555.0,97554.0,6.2394457]
[1739416081169,0.0926854,97570.0,97554.0,6.2394457]
[1739416081170,0.0926854,97580.0,97572.0,0.66]
[1739416081394,0.00026907,97573.0,97572.0,2.86517571]
[1739416081572,0.00026907,97573.0,97572.0,4.83786171]
[1739416081723,0.00026907,97573.0,97572.0,4.91436171]
[1739416082161,0.00026907,97573.0,97572.0,6.41436171]
[1739416082367,0.00326907,97573.0,97572.0,6.42436171]
[1739416082605,0.00126907,97573.0,97572.0,6.42436171]
[1739416082751,0.00026907,97573.0,97572.0,6.41436171]
[1739416083256,0.00126907,97573.0,97572.0,6.42936171]
[1739416083451,0.00419361,97577.0,97576.0,0.033]
[1739416083712,0.00419361,97577.0,97576.0,4.22213046]
[1739416084297,0.00419361,97577.0,97576.0,5.72213046]
[1739416084843,0.00419361,97577.0,97576.0,5.73313046]
[1739416085174,0.15791761,97577.0,97576.0,5.73313046]
[1739416085354,0.15791761,97577.0,97576.0,5.74315976]
[1739416087136,0.15814127,97577.0,97576.0,5.74315976]
[1739416088117,0.15805003,97577.0,97576.0,5.74315976]
[1739416088350,0.15805003,97577.0,97576.0,5.73585976]
[1739416088619,0.00432603,97577.0,97576.0,5.73585976]
[1739416090637,0.00432603,97577.0,97576.0,5.88913976]
[1739416093339,0.00432603,97577.0,97576.0,5.89643976]
[1739416095141,0.00432603,97577.0,97576.0,5.15283376]
[1739416095362,0.00432603,97577.0,97576.0,5.89643976]
[1739416095560,0.153712,97586.0,97585.0,0.66]
[1739416095773,0.153712,97586.0,97585.0,4.48779171]
[1739416096212,0.153712,97586.0,97585.0,5.97779171]
[1739416096915,0.154712,97586.0,97585.0,5.97779171]
[1739416097339,0.154712,97586.0,97585.0,5.9458309]
[1739416097564,0.154712,97586.0,97585.0,5.97768315]
[1739416097752,0.154712,97586.0,97585.0,5.98268315]
[1739416098905,0.15493566,97586.0,97585.0,5.98268315]
[1739416100233,0.17587986,97586.0,97585.0,5.98268315]
[1739416104947,0.17587986,97586.0,97585.0,6.13592315]
[1739416124444,0.02216786,97586.0,97585.0,6.13592315]
[1739416124656,0.17587786,97586.0,97585.0,6.13592315]
[1739416125804,0.17587786,97586.0,97585.0,4.0882119]
[1739416130890,0.17587786,97586.0,97585.0,3.4366859]
[1739416131092,0.17587786,97586.0,97585.0,3.5366859]
[1739416131317,0.17587786,97586.0,97585.0,3.9366859]
[1739416146136,0.17587786,97586.0,97585.0,3.9367924]
[1739416152909,0.17587786,97586.0,97585.0,3.9440924]
[1739416154901,0.17587786,97586.0,97585.0,4.0956184]
[1739416156557,0.17587786,97586.0,97585.0,3.9456184]
[1739416156774,0.22157786,97586.0,97585.0,1.72312515]
[1739416156984,0.30997843,97586.0,97585.0,1.55949015]
[1739416157188,0.30997843,97586.0,97585.0,1.56163794]
[1739416157398,0.30997843,97586.0,97585.0,1.30506884]
[1739416157632,0.30997843,97586.0,97585.0,1.21460988]
[1739416157835,0.30997843,97586.0,97585.0,1.06593488]
[1739416158051,0.30997843,97586.0,97585.0,0.98472176]
[1739416158292,0.30997843,97586.0,97585.0,0.94472176]
[1739416158501,0.30897843,97586.0,97585.0,0.73985176]
[1739416158674,0.30897843,97586.0,97585.0,0.70464902]
[1739416158890,0.30997843,97586.0,97585.0,0.70564902]
[1739416160545,0.30997843,97586.0,97585.0,0.63744902]
[1739416160975,0.30997843,97586.0,97585.0,0.48311515]
[1739416161284,0.30997843,97586.0,97585.0,0.001]
[1739416161503,0.16146843,97586.0,97585.0,0.4]
[1739416161743,0.52012743,97586.0,97585.0,0.4]
[1739416161960,0.52012743,97586.0,97585.0,0.491875]
[1739416162160,0.52012743,97586.0,97585.0,0.450885]
[1739416162677,0.52712743,97586.0,97585.0,0.451885]
[1739416162876,0.53412743,97586.0,97585.0,0.411895]
[1739416163118,0.52612743,97586.0,97585.0,0.3904]
[1739416163308,0.52612743,97586.0,97585.0,0.369905]
[1739416163508,0.53512743,97586.0,97585.0,0.35041]
[1739416163936,0.53512743,97586.0,97585.0,0.108879]
[1739416164191,0.53512743,97586.0,97585.0,0.088383]
[1739416165375,0.53512743,97586.0,97585.0,0.047391]
[1739416165705,0.53512743,97586.0,97577.0,0.0001065]
[1739416165706,0.17646843,97586.0,97577.0,0.0001065]
[1739416165916,0.277124,97577.0,97576.0,1.9428185]
[1739416166116,0.277124,97577.0,97576.0,3.99052975]
[1739416168760,0.291124,97577.0,97576.0,3.99152975]
[1739416169463,0.291124,97577.0,97576.0,3.99163625]
[1739416177522,0.291124,97577.0,97576.0,3.95064225]
[1739416177904,0.291124,97577.0,97576.0,3.93014525]
[1739416178137,0.291124,97577.0,97576.0,4.22718725]
[1739416178548,0.291124,97577.0,97576.0,4.20618725]
[1739416178752,0.291124,97577.0,97576.0,4.07318725]
[1739416178983,0.291124,97577.0,97576.0,3.71147525]
[1739416179177,0.291124,97577.0,97576.0,3.69087355]
[1739416179380,0.277124,97577.0,97576.0,3.41327355]
[1739416179591,0.277124,97577.0,97576.0,3.36531855]
[1739416179815,0.28531732,97577.0,97576.0,3.30520855]
[1739416180114,0.76327732,97577.0,97576.0,2.4626558]
[1739416180367,0.78231498,97577.0,97576.0,1.02395159]
[1739416180540,0.78931498,97577.0,97576.0,1.02495159]
[1739416180776,0.80453885,97577.0,97576.0,1.02595159]
[1739416180969,0.1261,97573.0,97572.0,1.02386616]
[1739416181085,0.1261,97573.0,97572.0,2.04771125]
[1739416181293,0.46223958,97573.0,97572.0,2.04771125]
[1739416182295,0.63500824,97573.0,97572.0,2.04771125]
[1739416182433,0.63500824,97573.0,97572.0,1.02386616]
[1739416182636,0.63500824,97573.0,97572.0,1.3855345]
[1739416182863,0.63500824,97573.0,97567.0,0.1]
[1739416182864,0.48827724,97573.0,97568.0,1.02386616]
[1739416183071,0.279637,97569.0,97568.0,1.99129057]
[1739416183277,0.28781423,97569.0,97568.0,1.99129057]
[1739416183885,0.28781423,97569.0,97568.0,1.95029257]
[1739416184164,0.28781423,97569.0,97568.0,1.90929457]
[1739416184802,0.61577423,97569.0,97568.0,1.86929657]
[1739416185011,0.63077423,97569.0,97568.0,1.84779757]
[1739416185211,0.63777423,97569.0,97568.0,1.84779757]
[1739416185796,0.63777423,97569.0,97568.0,1.82729857]
[1739416186281,0.63777423,97569.0,97568.0,1.80679957]
[1739416187281,0.153759,97555.0,97554.0,0.1001065]
[1739416187439,0.278459,97555.0,97554.0,2.14540907]
[1739416187644,0.286628,97555.0,97554.0,2.04540907]
[1739416187817,0.286628,97555.0,97554.0,2.00430057]
[1739416188030,0.286628,97555.0,97554.0,1.68379957]
[1739416188429,0.293628,97555.0,97554.0,1.98379957]
[1739416188631,0.219628,97555.0,97554.0,1.98484477]
[1739416188957,0.226628,97555.0,97554.0,1.98484477]
[1739416189172,0.215628,97555.0,97554.0,1.98384477]
[1739416189369,0.208628,97555.0,97554.0,1.98384477]
[1739416189545,0.215628,97555.0,97554.0,1.98384477]
[1739416190580,0.229628,97555.0,97554.0,1.98384477]
[1739416191950,0.306228,97555.0,97554.0,1.96345037]
[1739416194510,0.229628,97555.0,97554.0,1.96345037]
[1739416203559,0.182928,97555.0,97554.0,1.96345037]
[1739416204609,0.18315187,97555.0,97554.0,1.96345037]
[1739416208573,0.20223956,97555.0,97554.0,1.96345037]
[1739416217541,0.20223956,97555.0,97554.0,0.93958421]
[1739416218060,0.20223956,97555.0,97554.0,0.3001518]
[1739416221301,0.20223956,97555.0,97554.0,0.40265545]
[1739416221510,0.20223956,97555.0,97554.0,0.47785545]
[1739416221927,0.18315187,97555.0,97554.0,0.47785545]
[1739416222348,0.17615187,97555.0,97554.0,0.47785545]
[1739416222554,0.16215187,97555.0,97554.0,0.47785545]
[1739416222763,0.17715187,97555.0,97554.0,0.47885545]
[1739416223396,0.16915187,97555.0,97554.0,0.47785545]
[1739416223616,0.17615187,97555.0,97554.0,0.47885545]
[1739416224024,0.16915187,97555.0,97554.0,0.47785545]
[1739416224231,0.16215187,97555.0,97554.0,0.47785545]
[1739416224435,0.17015187,97555.0,97554.0,0.47885545]
[1739416224655,0.17715187,97555.0,97554.0,0.99138545]
[1739416225101,0.17715187,97555.0,97554.0,1.13120345]
[1739416225311,0.18415187,97555.0,97554.0,1.13120345]
[1739416226128,0.17015187,97555.0,97554.0,1.13120345]
[1739416226335,0.16915187,97555.0,97554.0,2.63020345]
[1739416226532,0.17615187,97555.0,97554.0,2.63120345]
[1739416226741,0.01422387,97555.0,97554.0,2.63120345]
[1739416227198,0.16098287,97555.0,97554.0,2.63020345]
[1739416227344,0.16198287,97555.0,97554.0,2.63020345]
[1739416230092,0.16198287,97555.0,97554.0,1.13020345]
[1739416230395,0.17014311,97555.0,97554.0,1.13020345]
[1739416233037,0.17014311,97555.0,97554.0,0.99038545]
[1739416233237,0.16914311,97555.0,97554.0,0.99038545]
[1739416233437,0.16914311,97555.0,97554.0,1.73399145]
[1739416233667,0.16214311,97555.0,97554.0,1.73399145]
[1739416233881,0.15398287,97555.0,97554.0,1.73399145]
[1739416234080,0.15498287,97555.0,97554.0,1.73899145]
[1739416234908,0.15898287,97555.0,97554.0,1.73899145]
[1739416235281,0.16859602,97555.0,97554.0,3.23899145]
[1739416235484,0.15898287,97555.0,97554.0,3.23899145]
[1739416252075,0.00522387,97555.0,97554.0,3.38899145]
[1739416252491,0.15898287,97555.0,97554.0,3.42092191]
[1739416252904,0.15798287,97555.0,97554.0,3.41592191]
[1739416253057,0.00422387,97555.0,97554.0,3.41592191]
[1739416253255,0.00522387,97555.0,97554.0,4.83592191]
[1739416253746,0.00022387,97555.0,97554.0,4.83092191]
[1739416255180,0.00222387,97555.0,97554.0,4.84092191]
[1739416258274,0.15598287,97555.0,97554.0,4.84092191]
[1739416259646,0.00222387,97555.0,97554.0,4.84092191]
[1739416260421,0.15598287,97555.0,97554.0,4.84092191]
[1739416263474,0.00222387,97555.0,97554.0,4.84092191]
[1739416269340,0.00222387,97555.0,97554.0,4.86392191]
[1739416269995,0.00222387,97555.0,97554.0,5.01720191]
[1739416270212,0.00222387,97555.0,97554.0,5.02720191]
[1739416270422,0.00222387,97555.0,97554.0,5.23549831]
[1739416270986,0.00022387,97577.0,97576.0,0.65]
[1739416271210,0.00022387,97577.0,97576.0,4.45105268]
[1739416271441,0.00022387,97577.0,97576.0,5.19465868]
[1739416271659,0.00022387,97577.0,97576.0,6.69465868]
[1739416272789,0.00522387,97577.0,97576.0,6.70987486]
[1739416274255,0.00422387,97577.0,97576.0,6.71217486]
[1739416274450,0.00022387,97577.0,97576.0,6.71217486]
[1739416274651,0.02161137,97577.0,97576.0,6.71917486]
[1739416274854,0.00122387,97577.0,97576.0,6.71917486]
[1739416274997,0.00022387,97577.0,97576.0,6.71217486]
[1739416275192,0.00022387,97577.0,97576.0,6.72317486]
[1739416275818,0.00022387,97577.0,97576.0,6.72417486]
[1739416276950,0.00022387,97587.0,97586.0,0.755]
[1739416277153,0.00022387,97587.0,97586.0,3.06510268]
[1739416277363,0.00022387,97587.0,97586.0,3.81870868]
[1739416277529,0.00022387,97587.0,97586.0,5.31870868]
[1739416278142,0.00122387,97587.0,97586.0,5.33370868]
[1739416278373,0.00122387,97587.0,97586.0,5.33670868]
[1739416285412,0.02190894,97587.0,97586.0,5.33670868]
[1739416285614,0.153694,97596.0,97589.0,0.023]
[1739416285843,0.153694,97596.0,97590.0,1.01910965]
[1739416286147,0.204925,97597.0,97590.0,1.53145965]
[1739416286317,0.204925,97597.0,97590.0,3.03145965]
[1739416286522,0.153695,97596.0,97590.0,3.06339011]
[1739416286735,0.153696,97595.0,97590.0,3.06339011]
[1739416286931,0.153698,97594.0,97590.0,3.06339011]
[1739416287132,0.00022387,97598.0,97590.0,3.06339011]
[1739416287336,0.00122387,97591.0,97590.0,3.06339011]
[1739416287749,0.00122387,97591.0,97590.0,3.06539011]
[1739416287949,0.00022387,97591.0,97590.0,3.06539011]
[1739416288148,0.00122387,97591.0,97590.0,3.08039011]
[1739416289132,0.00122387,97591.0,97590.0,3.23363011]
[1739416289655,0.15492587,97591.0,97590.0,3.23363011]
[1739416289856,0.15492587,97591.0,97590.0,3.57869965]
[1739416291143,0.15492587,97591.0,97590.0,3.61054939]
[1739416291550,0.15492587,97591.0,97590.0,3.57869965]
[1739416294176,0.15492587,97591.0,97590.0,3.6105483]
[1739416294546,0.17539092,97591.0,97590.0,3.6105483]
[1739416296598,0.02168892,97591.0,97590.0,3.6105483]
[1739416297587,0.17539092,97591.0,97590.0,3.6105483]
[1739416299694,0.02168892,97591.0,97590.0,3.6105483]
[1739416299994,0.17539092,97591.0,97590.0,3.6105483]
[1739416301147,0.17539092,97591.0,97590.0,3.6178483]
[1739416304906,0.17539092,97591.0,97590.0,3.2178483]
[1739416305111,0.17539092,97591.0,97590.0,3.4678483]
[1739416306575,0.17539092,97591.0,97590.0,3.4605483]
[1739416322805,0.17539092,97591.0,97590.0,3.3073083]
[1739416325889,0.17539092,97591.0,97590.0,2.5637023]
[1739416326037,0.17539092,97591.0,97590.0,3.3073083]
[1739416327137,0.16200969,97591.0,97590.0,3.3073083]
[1739416327336,0.16200969,97591.0,97590.0,3.3303083]
[1739416330293,0.16200969,97591.0,97590.0,3.6343083]
[1739416331927,0.00830769,97591.0,97590.0,3.6343083]
[1739416332364,0.153701,97592.0,97590.0,3.6343083]
[1739416332567,0.153701,97592.0,97591.0,0.8779583]
[1739416333005,0.153701,97592.0,97591.0,2.8902983]
[1739416334191,0.153701,97592.0,97591.0,2.8912983]
[1739416334469,0.153701,97592.0,97591.0,2.8985983]
[1739416334673,0.204929,97595.0,97591.0,2.8985983]
[1739416334853,0.153701,97592.0,97591.0,2.34764]
[1739416335054,0.153701,97592.0,97591.0,2.37960226]
[1739416335463,0.154701,97592.0,97591.0,2.37960226]
[1739416335869,0.153701,97592.0,97591.0,2.37860226]
[1739416336249,0.154701,97592.0,97591.0,2.39460226]
[1739416336448,0.154701,97592.0,97591.0,2.39360226]
[1739416336650,0.154701,97592.0,97591.0,2.39460226]
[1739416337400,0.00022387,97598.0,97597.0,0.1]
[1739416337596,0.00022387,97598.0,97597.0,2.16177591]
[1739416337805,0.00022387,97598.0,97597.0,2.90538191]
[1739416338016,0.00022387,97598.0,97597.0,4.30538191]
[1739416338222,0.15391487,97598.0,97597.0,4.30538191]
[1739416338817,0.15491487,97598.0,97597.0,4.31638191]
[1739416339342,0.15491487,97598.0,97597.0,4.64338191]
[1739416339578,0.00122387,97598.0,97597.0,3.89977591]
[1739416339793,0.00122387,97598.0,97597.0,4.64338191]
[1739416340189,0.15491487,97598.0,97597.0,4.64338191]
[1739416340582,0.00122387,97598.0,97597.0,4.64338191]
[1739416340780,0.00122387,97598.0,97597.0,4.59674259]
[1739416341216,0.15491487,97598.0,97597.0,4.59674259]
[1739416342798,0.15491487,97598.0,97597.0,3.85313659]
[1739416343156,0.17538844,97598.0,97597.0,4.59674259]
[1739416343773,0.17538844,97598.0,97597.0,4.69674259]
[1739416343970,0.17538844,97598.0,97597.0,4.70404259]
[1739416344784,0.17538844,97598.0,97597.0,4.79604568]
[1739416346743,0.17538844,97598.0,97597.0,4.94924568]
[1739416346932,0.17538844,97598.0,97597.0,4.94194568]
[1739416350218,0.17538844,97598.0,97597.0,4.84994259]
[1739416352047,0.17538844,97598.0,97597.0,4.85724259]
[1739416353397,0.17538844,97598.0,97597.0,4.11363659]
[1739416353591,0.17538844,97598.0,97597.0,4.85724259]
[1739416356330,0.17538844,97598.0,97597.0,5.25724259]
[1739416357100,0.17538844,97598.0,97597.0,4.93024259]
[1739416358825,0.17538844,97598.0,97597.0,4.93034909]
[1739416359912,0.17538844,97598.0,97597.0,4.90937451]
[1739416360129,0.25418844,97598.0,97597.0,4.85663525]
[1739416361471,0.26427923,97598.0,97597.0,4.85663525]
[1739416365022,0.26427923,97598.0,97597.0,4.84933525]
[1739416367276,0.26427923,97598.0,97597.0,4.10572925]
[1739416367475,0.26427923,97598.0,97597.0,4.71972625]
[1739416368061,0.26327923,97598.0,97597.0,4.22476325]
[1739416368257,0.26327923,97598.0,97597.0,4.3067559]
[1739416368464,0.26427923,97598.0,97597.0,4.3177559]
[1739416368866,0.26327923,97598.0,97597.0,4.3067559]
[1739416369298,0.26327923,97598.0,97597.0,4.3117559]
[1739416369533,0.26627923,97598.0,97597.0,4.3117559]
[1739416370380,0.26627923,97598.0,97597.0,2.8117559]
[1739416374417,0.26627923,97598.0,97597.0,4.3117559]
[1739416375073,0.26627923,97598.0,97597.0,4.29083155]
[1739416375726,0.26627923,97598.0,97597.0,4.13763155]
[1739416377367,0.26627923,97598.0,97597.0,4.11712355]
[1739416378492,0.26603333,97598.0,97597.0,4.11712355]
[1739416379798,0.26603333,97598.0,97597.0,3.98708955]
[1739416380003,0.26603333,97598.0,97597.0,4.73069555]
[1739416381084,0.26607743,97598.0,97597.0,4.73069555]
[1739416382271,0.26607743,97598.0,97597.0,4.70070358]
[1739416382637,0.26630109,97598.0,97597.0,4.70070358]
[1739416383041,0.26630109,97598.0,97597.0,3.20070358]
[1739416386184,0.26630109,97598.0,97597.0,3.16922407]
[1739416387083,0.26630109,97598.0,97597.0,4.66922407]
[1739416390012,0.41630109,97598.0,97597.0,2.1192053]